bitfinex-derivatives/quotes_BNBF0:USTF0_20250908
["timestamp","ask_amount","ask_price","bid_price","bid_amount"]
[1757364770636,1.53242595,875.42,874.3,0.19846475]
[1757364771139,0.61776152,875.41,874.3,0.19846475]
[1757364771440,0.61776152,875.4,874.3,0.19846475]
[1757364771641,0.61776152,875.39,874.3,0.19846475]
[1757364771936,0.61776152,875.38,874.3,0.19846475]
[1757364772136,0.61776152,875.37,874.3,0.19846475]
[1757364772336,0.61776152,875.36,874.3,0.19846475]
[1757364772639,1.53242595,875.41,874.3,0.19846475]
[1757364772840,0.61772704,875.4,874.3,0.19846475]
[1757364773139,0.61772704,875.39,874.3,0.19846475]
[1757364773339,0.61772704,875.38,874.3,0.19846475]
[1757364773541,0.61772704,875.37,874.3,0.19846475]
[1757364773836,0.61772704,875.36,874.3,0.19846475]
[1757364774036,1.53242595,875.42,874.3,0.19846475]
[1757364774340,0.61771697,875.41,874.3,0.19846475]
[1757364774540,0.61771697,875.4,874.3,0.19846475]
[1757364774737,0.61771697,875.39,874.3,0.19846475]
[1757364774940,1.53242595,875.42,874.3,0.19846475]
[1757364774941,0.61771697,875.38,874.3,0.19846475]
[1757364775140,0.61771697,875.37,874.3,0.19846475]
[1757364775336,0.61771697,875.36,874.3,0.19846475]
[1757364775537,1.53242595,875.4,874.3,0.19846475]
[1757364775740,0.61256825,875.39,874.3,0.19846475]
[1757364775941,0.61256825,875.38,874.3,0.19846475]
[1757364776140,1.53242595,875.4,874.3,0.19846475]
[1757364776141,0.61256825,875.37,874.3,0.19846475]
[1757364776336,0.61256825,875.36,874.3,0.19846475]
[1757364776538,1.53242595,875.4,874.3,0.19846475]
[1757364776838,0.61255969,875.39,874.3,0.19846475]
[1757364777141,0.61255969,875.38,874.3,0.19846475]
[1757364777441,0.61255969,875.37,874.3,0.19846475]
[1757364777637,0.61255969,875.36,874.3,0.19846475]
[1757364777941,1.53242595,875.38,874.3,0.19846475]
[1757364778241,0.61255181,875.37,874.3,0.19846475]
[1757364778443,0.61255181,875.36,874.3,0.19846475]
[1757364778641,1.53242595,875.38,874.3,0.19846475]
[1757364778841,0.61254519,875.37,874.3,0.19846475]
[1757364779039,0.61254519,875.36,874.3,0.19846475]
[1757364779242,1.53242595,875.36,874.3,0.19846475]
[1757364780843,1.53242595,875.49,874.3,0.19846475]
[1757364781041,0.61253903,875.48,874.3,0.19846475]
[1757364781245,0.61253903,875.47,874.3,0.19846475]
[1757364781445,0.61253903,875.46,874.3,0.19846475]
[1757364781745,0.61253903,875.45,874.3,0.19846475]
[1757364781942,0.61253903,875.44,874.3,0.19846475]
[1757364782146,0.61253903,875.43,874.3,0.19846475]
[1757364782446,0.61253903,875.42,874.3,0.19846475]
[1757364782645,0.61253903,875.41,874.3,0.19846475]
[1757364782846,0.61253903,875.4,874.3,0.19846475]
[1757364783145,0.61253903,875.39,874.3,0.19846475]
[1757364783346,1.53242595,875.53,874.3,0.19846475]
[1757364783547,0.41410214,875.52,874.21,1.5236796]
[1757364783742,1.53242595,875.58,874.21,1.5236796]
[1757364784343,1.53242595,875.59,874.21,1.5236796]
[1757364786248,1.53242595,875.6,874.21,1.5236796]
[1757364786648,1.53242595,875.6,874.4,0.1984506]
[1757364786850,1.53242595,875.59,874.4,0.1984506]
[1757364787150,1.53242595,875.6,874.4,0.1984506]
[1757364787450,1.53242595,875.61,874.4,0.1984506]
[1757364788752,1.53242595,875.54,874.4,0.1984506]
[1757364789251,1.53242595,875.75,874.4,0.1984506]
[1757364790253,1.53242595,875.76,874.4,0.1984506]
[1757364791655,1.53242595,875.77,874.4,0.1984506]
[1757364792451,3.5478291,877.15,874.4,0.1984506]
[1757364792452,1.53242595,875.76,874.4,0.1984506]
[1757364795258,1.53242595,875.77,874.4,0.1984506]
[1757364795555,0.61010571,875.76,874.4,0.1984506]
[1757364795857,1.53242595,875.8,874.4,0.1984506]
[1757364795858,0.61010571,875.75,874.4,0.1984506]
[1757364796052,0.61010571,875.74,874.4,0.1984506]
[1757364796258,0.61010571,875.73,874.4,0.1984506]
[1757364796452,0.61010571,875.72,874.4,0.1984506]
[1757364796757,0.61010571,875.71,874.4,0.1984506]
[1757364797054,0.61010571,875.7,874.4,0.1984506]
[1757364797258,0.61010571,875.69,874.4,0.1984506]
[1757364797554,0.61010571,875.68,874.4,0.1984506]
[1757364797757,0.61010571,875.67,874.4,0.1984506]
[1757364797958,0.61010571,875.66,874.4,0.1984506]
[1757364798152,1.53242595,875.8,874.4,0.1984506]
[1757364798153,0.61010571,875.65,874.4,0.1984506]
[1757364798353,0.61010571,875.64,874.4,0.1984506]
[1757364798553,0.61010571,875.63,874.4,0.1984506]
[1757364798753,0.61010571,875.62,874.4,0.1984506]
[1757364798957,0.61010571,875.61,874.4,0.1984506]
[1757364799252,0.61010571,875.6,874.4,0.1984506]
[1757364799456,0.61010571,875.59,874.4,0.1984506]
[1757364799656,0.61010571,875.58,874.4,0.1984506]
[1757364799856,0.61010571,875.57,874.4,0.1984506]
[1757364800057,0.61010571,875.56,874.4,0.1984506]
[1757364800254,0.61010571,875.55,874.4,0.1984506]
[1757364800558,0.61010571,875.54,874.4,0.1984506]
[1757364800755,0.61010571,875.53,874.4,0.1984506]
[1757364800958,0.61010571,875.52,874.4,0.1984506]
[1757364801254,0.61010571,875.51,874.4,0.1984506]
[1757364801458,0.61010571,875.5,874.4,0.1984506]
[1757364801656,0.61010571,875.49,874.4,0.1984506]
[1757364801956,1.53242595,876.04,874.4,0.1984506]
[1757364802159,0.61015769,876.03,874.4,0.1984506]
[1757364802459,0.61015769,876.02,874.4,0.1984506]
[1757364802656,0.61015769,876.01,874.4,0.1984506]
[1757364802861,0.61015769,876.0,874.4,0.1984506]
[1757364803162,0.61015769,875.99,874.4,0.1984506]
[1757364803361,0.61015769,875.98,874.4,0.1984506]
[1757364803561,0.61015769,875.97,874.4,0.1984506]
[1757364803759,0.61015769,875.96,874.4,0.1984506]
[1757364803956,0.61015769,875.95,874.4,0.1984506]
[1757364804158,0.61015769,875.94,874.4,0.1984506]
[1757364804360,0.61015769,875.93,874.4,0.1984506]
[1757364804560,0.61015769,875.92,874.4,0.1984506]
[1757364804859,0.61015769,875.91,874.4,0.1984506]
[1757364805062,0.61015769,875.9,874.4,0.1984506]
[1757364805360,0.61015769,875.89,874.4,0.1984506]
[1757364805559,0.61015769,875.88,874.4,0.1984506]
[1757364805758,1.53242595,876.16,874.4,0.1984506]
[1757364807365,1.53242595,876.17,874.4,0.1984506]
[1757364809065,1.53242595,876.16,874.4,0.1984506]
[1757364810870,1.53242595,876.14,874.4,0.1984506]
[1757364811667,1.53242595,876.11,874.4,0.1984506]
[1757364811870,1.53242595,875.98,874.4,0.1984506]
[1757364812070,1.53242595,875.79,874.44,1.02262545]
[1757364814672,1.53242595,875.78,874.44,1.02262545]
[1757364816672,1.53242595,875.77,874.46,1.02262545]
[1757364817073,1.53242595,875.78,874.47,1.02262545]
[1757364817878,1.53242595,875.77,874.47,1.02262545]
[1757364818078,1.53242595,875.79,874.46,1.02262545]
[1757364819276,1.53242595,875.86,874.42,1.02262545]
[1757364821477,1.53242595,875.88,874.42,1.02262545]
[1757364821676,1.53242595,875.88,874.44,1.02262545]
[1757364821980,1.53242595,875.87,874.44,1.02262545]
[1757364822576,1.53242595,875.87,874.4,0.1984506]
[1757364822577,1.53242595,875.85,874.45,1.02262545]
[1757364823078,1.53242595,875.82,874.47,1.02262545]
[1757364824283,1.53242595,875.76,874.5,1.02262545]
[1757364826685,1.53242595,875.79,874.49,1.02262545]
[1757364827983,1.53242595,875.78,874.49,1.02262545]
[1757364828589,1.53242595,875.82,874.49,1.02262545]
[1757364828792,1.53242595,875.84,874.46,1.02262545]
[1757364828991,1.53242595,875.85,874.45,1.02262545]
[1757364829194,1.53242595,875.82,874.47,1.02262545]
[1757364831091,1.53242595,875.83,874.47,1.02262545]
[1757364831497,1.53242595,875.82,874.46,1.02262545]
[1757364832196,1.53242595,875.84,874.46,1.02262545]
[1757364832396,1.53242595,875.83,874.46,1.02262545]
[1757364833297,1.53242595,875.84,874.46,1.02262545]
[1757364833500,1.53242595,875.84,874.45,1.02262545]
[1757364834400,1.53242595,875.84,874.46,1.02262545]
[1757364834595,1.53242595,875.84,874.45,1.02262545]
[1757364835095,1.53242595,875.83,874.46,1.02262545]
[1757364835996,1.53242595,875.82,874.47,1.02262545]
[1757364836200,1.53242595,875.91,874.42,1.02262545]
[1757364836700,1.53242595,875.9,874.43,1.02262545]
[1757364837403,1.53242595,875.89,874.43,1.02262545]
[1757364839099,1.53242595,875.89,874.44,1.02262545]
[1757364839300,1.53242595,875.88,874.44,1.02262545]
[1757364840506,1.53242595,875.89,874.44,1.02262545]
[1757364841302,1.53242595,875.88,874.44,1.02262545]
[1757364842108,1.53242595,875.87,874.44,1.02262545]
[1757364843307,1.53242595,875.86,874.45,1.02262545]
[1757364843607,1.53242595,875.86,874.43,1.02262545]
[1757364843807,1.53242595,875.9,874.4,0.1984506]
[1757364844206,1.53242595,875.89,874.4,0.1984506]
[1757364846008,1.53242595,875.89,874.4,1.22107605]
[1757364846207,1.53242595,875.82,874.45,1.02262545]
[1757364848411,1.53242595,875.81,874.45,1.02262545]
[1757364849212,1.53242595,875.81,874.46,1.02262545]
[1757364850509,1.53242595,875.79,874.47,1.02262545]
[1757364851314,1.53242595,875.76,874.4,0.1984506]
[1757364851513,0.60657067,875.75,874.4,0.1984506]
[1757364851713,0.60657067,875.74,874.4,0.1984506]
[1757364852010,0.60657067,875.73,874.4,0.1984506]
[1757364852209,0.60657067,875.72,874.4,0.1984506]
[1757364852414,0.60657067,875.71,874.4,0.1984506]
[1757364852614,0.60657067,875.7,874.4,0.1984506]
[1757364852809,0.60657067,875.69,874.4,0.1984506]
[1757364853008,0.60657067,875.68,874.4,0.1984506]
[1757364853210,0.60657067,875.67,874.4,0.1984506]
[1757364853509,0.60657067,875.66,874.4,0.1984506]
[1757364853813,0.60665118,875.65,874.4,0.1984506]
[1757364854013,0.60665118,875.64,874.4,0.1984506]
[1757364854214,0.60665118,875.63,874.4,0.1984506]
[1757364854414,0.60665118,875.62,874.4,0.1984506]
[1757364854614,0.60665118,875.61,874.4,0.1984506]
[1757364854910,0.60665118,875.6,874.4,0.1984506]
[1757364855214,0.60665118,875.59,874.4,0.1984506]
[1757364855414,0.60665118,875.58,874.4,0.1984506]
[1757364855711,0.60665118,875.57,874.4,0.1984506]
[1757364856016,0.60665118,875.56,874.4,0.1984506]
[1757364856211,0.60665118,875.55,874.4,0.1984506]
[1757364856410,1.53242595,875.69,874.4,0.1984506]
[1757364856411,0.60665118,875.54,874.4,0.1984506]
[1757364856610,1.53242595,875.69,874.4,0.1984506]
[1757364856810,0.60681503,875.68,874.4,0.1984506]
[1757364857014,0.60681503,875.67,874.4,0.1984506]
[1757364857315,0.60681503,875.66,874.4,0.1984506]
[1757364857516,0.60681503,875.65,874.4,0.1984506]
[1757364857717,0.60681503,875.64,874.4,0.1984506]
[1757364858017,0.60681503,875.63,874.4,0.1984506]
[1757364858213,2.56196976,876.43,874.4,0.1984506]
[1757364858214,0.60681503,875.62,874.4,0.1984506]
[1757364858413,0.60681503,875.61,874.4,0.1984506]
[1757364858614,0.60681503,875.6,874.4,0.1984506]
[1757364858813,0.60681503,875.59,874.4,0.1984506]
[1757364859118,0.60681503,875.58,874.4,0.1984506]
[1757364859312,0.60681503,875.57,874.4,0.1984506]
[1757364859612,0.60681503,875.56,874.4,0.1984506]
[1757364859812,0.60681503,875.55,874.4,0.1984506]
[1757364860013,1.53242595,875.72,874.4,0.1984506]
[1757364860215,0.60704019,875.71,874.4,0.1984506]
[1757364860419,0.60704019,875.7,874.4,0.1984506]
[1757364860616,0.60704019,875.69,874.4,0.1984506]
[1757364860814,0.60704019,875.68,874.4,0.1984506]
[1757364861020,0.60704019,875.67,874.4,0.1984506]
[1757364861315,0.60704019,875.66,874.4,0.1984506]
[1757364861518,0.60704019,875.65,874.4,0.1984506]
[1757364861820,0.60704019,875.64,874.4,0.1984506]
[1757364862117,0.60704019,875.63,874.4,0.1984506]
[1757364862319,0.60704019,875.62,874.4,0.1984506]
[1757364862521,0.60704019,875.61,874.4,0.1984506]
[1757364862721,0.60704019,875.6,874.4,0.1984506]
[1757364863021,1.53242595,875.74,874.4,0.1984506]
[1757364863022,0.60704019,875.59,874.4,0.1984506]
[1757364863321,0.60704019,875.58,874.4,0.1984506]
[1757364863517,0.60704019,875.57,874.4,0.1984506]
[1757364863719,0.60704019,875.56,874.4,0.1984506]
[1757364863923,0.60704019,875.55,874.4,0.1984506]
[1757364864219,1.53242595,875.74,874.4,0.1984506]
[1757364864423,0.60734531,875.73,874.4,0.1984506]
[1757364864620,0.60734531,875.72,874.4,0.1984506]
[1757364864922,0.60734531,875.71,874.4,0.1984506]
[1757364865123,0.60734531,875.7,874.4,0.1984506]
[1757364865319,0.60734531,875.69,874.4,0.1984506]
[1757364865524,0.60734531,875.68,874.4,0.1984506]
[1757364865723,0.60734531,875.67,874.4,0.1984506]
[1757364866020,0.60734531,875.66,874.4,0.1984506]
[1757364866221,0.60734531,875.65,874.4,0.1984506]
[1757364866425,0.60734531,875.64,874.4,0.1984506]
[1757364866627,0.60734531,875.63,874.4,0.1984506]
[1757364866824,0.60734531,875.62,874.4,0.1984506]
[1757364867126,0.60734531,875.61,874.4,0.1984506]
[1757364867325,0.60734531,875.6,874.4,0.1984506]
[1757364867523,0.60734531,875.59,874.4,0.1984506]
[1757364867724,0.60734531,875.58,874.4,0.1984506]
[1757364867927,0.60734531,875.57,874.4,0.1984506]
[1757364868226,0.60734531,875.56,874.4,0.1984506]
[1757364868427,0.60734531,875.55,874.4,0.1984506]
[1757364868627,1.53242595,875.71,874.4,0.1984506]
[1757364868827,0.60818516,875.7,874.4,0.1984506]
[1757364869027,0.60818516,875.69,874.4,0.1984506]
[1757364869226,0.60818516,875.68,874.4,0.1984506]
[1757364869428,0.60818516,875.67,874.4,0.1984506]
[1757364869724,0.60818516,875.66,874.4,0.1984506]
[1757364869929,0.60818516,875.65,874.4,0.1984506]
[1757364870225,0.60818516,875.64,874.4,0.1984506]
[1757364870424,0.60818516,875.63,874.4,0.1984506]
[1757364870625,1.53242595,875.75,874.4,0.1984506]
[1757364870626,0.60818516,875.62,874.4,0.1984506]
[1757364870824,0.60818516,875.61,874.4,0.1984506]
[1757364871124,0.60818516,875.6,874.4,0.1984506]
[1757364871325,0.60818516,875.59,874.4,0.1984506]
[1757364871525,0.60818516,875.58,874.4,0.1984506]
[1757364871728,0.60818516,875.57,874.4,0.1984506]
[1757364871928,0.60818516,875.56,874.4,0.1984506]
[1757364872124,0.60818516,875.55,874.4,0.1984506]
[1757364872428,1.53242595,875.86,874.4,0.1984506]
[1757364872625,0.60937997,875.85,874.4,0.1984506]
[1757364872827,0.60937997,875.84,874.4,0.1984506]
[1757364873030,0.60937997,875.83,874.4,0.1984506]
[1757364873229,0.60937997,875.82,874.4,0.1984506]
[1757364873429,0.60937997,875.81,874.4,0.1984506]
[1757364873625,0.60937997,875.8,874.4,0.1984506]
[1757364873826,1.53242595,875.85,874.4,0.1984506]
[1757364873827,0.60937997,875.79,874.4,0.1984506]
[1757364874030,0.60937997,875.78,874.4,0.1984506]
[1757364874230,0.60937997,875.77,874.4,0.1984506]
[1757364874428,0.60937997,875.76,874.4,0.1984506]
[1757364874631,0.60937997,875.75,874.4,0.1984506]
[1757364874929,0.60937997,875.74,874.4,0.1984506]
[1757364875138,0.60937997,875.73,874.4,0.1984506]
[1757364875332,0.60937997,875.72,874.4,0.1984506]
[1757364875529,0.60937997,875.71,874.4,0.1984506]
[1757364875733,0.60937997,875.7,874.4,0.1984506]
[1757364876032,0.60937997,875.69,874.4,0.1984506]
[1757364876333,0.60937997,875.68,874.4,0.1984506]
[1757364876533,0.60937997,875.67,874.4,0.1984506]
[1757364876832,0.60937997,875.66,874.4,0.1984506]
[1757364877030,0.60937997,875.65,874.4,0.1984506]
[1757364877228,0.60937997,875.64,874.4,0.1984506]
[1757364877428,0.60937997,875.63,874.4,0.1984506]
[1757364877631,0.60937997,875.62,874.4,0.1984506]
[1757364877834,0.60937997,875.61,874.4,0.1984506]
[1757364878128,1.53242595,875.84,874.4,0.1984506]
[1757364878129,0.60937997,875.6,874.4,0.1984506]
[1757364878329,0.60937997,875.59,874.4,0.1984506]
[1757364878527,0.60937997,875.58,874.4,0.1984506]
[1757364878730,0.60937997,875.57,874.4,0.1984506]
[1757364879032,0.60937997,875.56,874.4,0.1984506]
[1757364879232,0.60937997,875.55,874.4,0.1984506]
[1757364879433,1.53242595,875.81,874.4,0.1984506]
[1757364879631,0.61057835,875.8,874.4,0.1984506]
[1757364879930,0.61057835,875.79,874.4,0.1984506]
[1757364880130,0.61057835,875.78,874.4,0.1984506]
[1757364880332,1.53242595,875.76,874.4,0.1984506]
[1757364880529,0.61057835,875.75,874.4,0.1984506]
[1757364880833,0.61057835,875.74,874.4,0.1984506]
[1757364881034,0.61057835,875.73,874.4,0.1984506]
[1757364881234,0.61057835,875.72,874.4,0.1984506]
[1757364881433,0.61057835,875.71,874.4,0.1984506]
[1757364881728,0.61057835,875.7,874.4,0.1984506]
[1757364881928,0.61057835,875.69,874.4,0.1984506]
[1757364882131,0.61057835,875.68,874.4,0.1984506]
[1757364882429,0.61057835,875.67,874.4,0.1984506]
[1757364882630,0.61057835,875.66,874.4,0.1984506]
[1757364882830,0.61057835,875.65,874.4,0.1984506]
[1757364883032,0.61057835,875.64,874.4,0.1984506]
[1757364883230,0.61057835,875.63,874.4,0.1984506]
[1757364883429,0.61057835,875.62,874.4,0.1984506]
[1757364883632,1.53242595,875.86,874.4,0.1984506]
[1757364883633,0.61057835,875.61,874.4,0.1984506]
[1757364883837,0.61057835,875.6,874.4,0.1984506]
[1757364884035,0.61057835,875.59,874.4,0.1984506]
[1757364884234,1.53242595,875.86,874.4,0.1984506]
[1757364884531,0.6105,875.85,874.4,0.1984506]
[1757364884734,0.6105,875.84,874.4,0.1984506]
[1757364885029,0.6105,875.83,874.4,0.1984506]
[1757364885231,0.6105,875.82,874.4,0.1984506]
[1757364885432,0.6105,875.81,874.4,0.1984506]
[1757364885632,0.6105,875.8,874.4,0.1984506]
[1757364885833,0.6105,875.79,874.4,0.1984506]
[1757364886033,0.6105,875.78,874.4,0.1984506]
[1757364886237,0.6105,875.77,874.4,0.1984506]
[1757364886439,0.6105,875.76,874.4,0.1984506]
[1757364886640,0.6105,875.75,874.4,0.1984506]
[1757364886839,0.6105,875.74,874.4,0.1984506]
[1757364887044,0.6105,875.73,874.4,0.1984506]
[1757364887241,0.6105,875.72,874.4,0.1984506]
[1757364887535,0.6105,875.71,874.4,0.1984506]
[1757364887738,0.6105,875.7,874.4,0.1984506]
[1757364887937,0.6105,875.69,874.4,0.1984506]
[1757364888135,0.6105,875.68,874.4,0.1984506]
[1757364888335,0.6105,875.67,874.4,0.1984506]
[1757364888540,0.6105,875.66,874.4,0.1984506]
[1757364888739,0.6105,875.65,874.4,0.1984506]
[1757364889036,0.6105,875.64,874.4,0.1984506]
[1757364889234,0.6105,875.63,874.4,0.1984506]
[1757364889444,0.6105,875.62,874.4,0.1984506]
[1757364889644,0.6105,875.61,874.4,0.1984506]
[1757364889841,0.6105,875.6,874.4,0.1984506]
[1757364890045,0.6105,875.59,874.4,0.1984506]
[1757364890242,0.6105,875.58,874.4,0.1984506]
[1757364890443,1.53242595,875.88,874.4,0.1984506]
[1757364890643,1.53242595,875.75,874.4,0.1984506]
[1757364890839,0.61161575,875.74,874.4,0.1984506]
[1757364891043,0.61161575,875.73,874.4,0.1984506]
[1757364891344,0.61161575,875.72,874.4,0.1984506]
[1757364891541,0.61161575,875.71,874.4,0.1984506]
[1757364891844,0.61161575,875.7,874.4,0.1984506]
[1757364892048,0.61160882,875.69,874.4,0.1984506]
[1757364892346,0.61160882,875.68,874.4,0.1984506]
[1757364892543,0.61160882,875.67,874.4,0.1984506]
[1757364892746,0.61160882,875.66,874.4,0.1984506]
[1757364892946,0.61160882,875.65,874.4,0.1984506]
[1757364893148,0.61160882,875.64,874.4,0.1984506]
[1757364893442,0.61160882,875.63,874.4,0.1984506]
[1757364893646,0.61160882,875.62,874.4,0.1984506]
[1757364893848,0.61160882,875.61,874.4,0.1984506]
[1757364894048,0.61160882,875.6,874.4,0.1984506]
[1757364894249,0.61160882,875.59,874.4,0.1984506]
[1757364894545,0.61160882,875.58,874.4,0.1984506]
[1757364894748,1.53242595,875.76,874.4,0.1984506]
[1757364894949,0.61159066,875.75,874.4,0.1984506]
[1757364895148,0.61159066,875.74,874.4,0.1984506]
[1757364895348,0.61159066,875.73,874.4,0.1984506]
[1757364895549,0.61159066,875.72,874.4,0.1984506]
[1757364895750,0.61159066,875.71,874.4,0.1984506]
[1757364895947,0.61159066,875.7,874.4,0.1984506]
[1757364896245,0.61159066,875.69,874.4,0.1984506]
[1757364896446,0.61159066,875.68,874.4,0.1984506]
[1757364896649,0.61159066,875.67,874.4,0.1984506]
[1757364896849,0.61159066,875.66,874.4,0.1984506]
[1757364897048,0.61159066,875.65,874.4,0.1984506]
[1757364897250,0.61159066,875.64,874.4,0.1984506]
[1757364897548,0.61159066,875.63,874.4,0.1984506]
[1757364897752,0.61159066,875.62,874.4,0.1984506]
[1757364897952,0.61159066,875.61,874.4,0.1984506]
[1757364898248,0.61159066,875.6,874.4,0.1984506]
[1757364898450,0.61159066,875.59,874.4,0.1984506]
[1757364898652,2.56196976,876.51,874.4,1.7221302]
[1757364898653,0.61159066,875.58,874.4,1.7221302]
[1757364898853,1.53242595,875.71,874.4,1.7221302]
[1757364899052,0.61140423,875.7,874.4,1.7221302]
[1757364899248,0.61140423,875.69,874.4,1.7221302]
[1757364899450,0.61140423,875.68,874.4,1.7221302]
[1757364899650,0.61140423,875.67,874.4,1.7221302]
[1757364899853,0.61140423,875.66,874.4,0.1984506]
[1757364900053,0.61140423,875.65,874.4,0.1984506]
[1757364900254,0.61140423,875.64,874.4,0.1984506]
[1757364900452,0.61140423,875.63,874.4,0.1984506]
[1757364900652,0.61140423,875.62,874.4,0.1984506]
[1757364900852,0.61140423,875.61,874.4,0.1984506]
[1757364901052,0.61140423,875.6,874.4,0.1984506]
[1757364901354,0.61140423,875.59,874.4,0.1984506]
[1757364901554,1.53242595,875.74,874.4,0.1984506]
[1757364901555,0.61140423,875.58,874.4,0.1984506]
[1757364901751,1.53242595,875.74,874.4,0.1984506]
[1757364901951,0.61269082,875.73,874.4,0.1984506]
[1757364902151,0.61269082,875.72,874.4,0.1984506]
[1757364902355,0.61269082,875.71,874.4,0.1984506]
[1757364902553,0.61269082,875.7,874.4,0.1984506]
[1757364902754,0.61269082,875.69,874.4,0.1984506]
[1757364902950,0.61269082,875.68,874.4,0.1984506]
[1757364903250,0.61269082,875.67,874.4,0.1984506]
[1757364903451,0.61269082,875.66,874.4,0.1984506]
[1757364903652,0.61269082,875.65,874.4,0.1984506]
[1757364903951,0.61269082,875.64,874.4,0.1984506]
[1757364904252,0.61269082,875.63,874.4,0.1984506]
[1757364904456,0.61269082,875.62,874.4,0.1984506]
[1757364904655,0.61269082,875.61,874.4,0.1984506]
[1757364904855,0.61269082,875.6,874.4,0.1984506]
[1757364905151,0.61269082,875.59,874.4,0.1984506]
[1757364905452,0.61269082,875.58,874.4,0.1984506]
[1757364905651,0.61269082,875.57,874.4,0.1984506]
[1757364905856,0.61269082,875.56,874.4,0.1984506]
[1757364906053,0.61268782,875.55,874.4,0.1984506]
[1757364906258,0.61268782,875.54,874.4,0.1984506]
[1757364906452,0.61268782,875.53,874.4,0.1984506]
[1757364906651,0.61268782,875.52,874.4,0.1984506]
[1757364906852,0.61268782,875.51,874.4,0.1984506]
[1757364907152,0.61268782,875.5,874.4,0.1984506]
[1757364907352,0.61268782,875.49,874.4,0.1984506]
[1757364907556,0.61268782,875.48,874.4,0.1984506]
[1757364907753,0.61268782,875.47,874.4,0.1984506]
[1757364907957,0.61268782,875.46,874.4,0.1984506]
[1757364908253,0.61268782,875.45,874.4,0.1984506]
[1757364908555,0.61268782,875.44,874.4,0.1984506]
[1757364908753,0.61268782,875.43,874.4,0.1984506]
[1757364909056,0.61268782,875.42,874.4,0.1984506]
[1757364909252,0.61268782,875.41,874.4,0.1984506]
[1757364909455,0.61268782,875.4,874.4,0.1984506]
[1757364909755,0.61268782,875.39,874.4,0.1984506]
[1757364909956,1.53242595,875.56,874.4,0.1984506]
[1757364910256,0.61465271,875.55,874.4,0.1984506]
[1757364910457,0.61465271,875.54,874.4,0.1984506]
[1757364910655,0.61465271,875.53,874.4,0.1984506]
[1757364910856,0.61465271,875.52,874.4,0.1984506]
[1757364911056,0.61465271,875.51,874.4,0.1984506]
[1757364911356,0.61465271,875.5,874.4,0.1984506]
[1757364911557,1.53242595,875.48,874.4,0.1984506]
[1757364911757,0.61465271,875.47,874.4,0.1984506]
[1757364912057,0.61465271,875.46,874.4,0.1984506]
[1757364912253,2.56196976,876.19,874.4,0.1984506]
[1757364912254,0.61465271,875.45,874.4,0.1984506]
[1757364912457,0.61465271,875.44,874.4,0.1984506]
[1757364912656,0.61465271,875.43,874.4,0.1984506]
[1757364912857,0.61465271,875.42,874.4,0.1984506]
[1757364913054,0.61465271,875.41,874.4,0.1984506]
[1757364913355,0.61465271,875.4,874.4,0.1984506]
[1757364913554,0.61465271,875.39,874.4,0.1984506]
[1757364913853,0.61465271,875.38,874.4,0.1984506]
[1757364914057,0.61465271,875.37,874.4,0.1984506]
[1757364914253,0.61465271,875.36,874.4,0.1984506]
[1757364914557,0.61465271,875.35,874.4,0.1984506]
[1757364914757,0.61465271,875.34,874.4,0.1984506]
[1757364914957,0.61465271,875.33,874.4,0.1984506]
[1757364915152,1.53242595,875.52,874.4,0.1984506]
[1757364915353,0.61397427,875.51,874.4,0.1984506]
[1757364915556,0.61397427,875.5,874.4,0.1984506]
[1757364915853,0.61397427,875.49,874.4,0.1984506]
[1757364916158,0.61397427,875.48,874.4,0.1984506]
[1757364916453,0.61397427,875.47,874.4,0.1984506]
[1757364916654,0.61397427,875.46,874.4,0.1984506]
[1757364916954,0.61397427,875.45,874.4,0.1984506]
[1757364917257,0.61397427,875.44,874.4,0.1984506]
[1757364917458,0.61397427,875.43,874.4,0.1984506]
[1757364917658,0.61397427,875.42,874.4,0.1984506]
[1757364917856,0.61397427,875.41,874.4,0.1984506]
[1757364918057,0.61397427,875.4,874.4,0.1984506]
[1757364918354,0.61397427,875.39,874.4,0.1984506]
[1757364918557,0.61397427,875.38,874.4,0.1984506]
[1757364918755,0.61397427,875.37,874.4,0.1984506]
[1757364918958,0.61397427,875.36,874.4,0.1984506]
[1757364919156,0.61397427,875.35,874.4,0.1984506]
[1757364919354,0.61397427,875.34,874.4,0.1984506]
[1757364919553,0.61397427,875.33,874.4,0.1984506]
[1757364919758,0.61397427,875.32,874.4,0.1984506]
[1757364919955,0.61397427,875.31,874.4,0.1984506]
[1757364920160,0.61397427,875.3,874.4,0.1984506]
[1757364920360,1.53242595,875.53,874.4,0.1984506]
[1757364920560,2.14589314,875.52,874.4,0.1984506]
[1757364920756,0.61346719,875.51,874.4,0.1984506]
[1757364921060,0.61346719,875.5,874.4,0.1984506]
[1757364921263,0.61346719,875.49,874.4,0.1984506]
[1757364921459,0.61346719,875.48,874.4,0.1984506]
[1757364921658,0.61346719,875.47,874.4,0.1984506]
[1757364921859,0.61346719,875.46,874.4,0.1984506]
[1757364922062,0.61346719,875.45,874.4,0.1984506]
[1757364922362,0.61346719,875.44,874.4,0.1984506]
[1757364922562,0.61346719,875.43,874.4,0.1984506]
[1757364922759,0.61346719,875.42,874.4,0.1984506]
[1757364922957,0.61346719,875.41,874.4,0.1984506]
[1757364923258,0.61346719,875.4,874.4,0.1984506]